bitfinex/quotes_SOLUSD_20251130
["timestamp","ask_amount","ask_price","bid_price","bid_amount"]
[1764535306314,11.14076479,137.16,137.13,3.48743454]
[1764535306502,0.65,137.15,137.14,3.48743454]
[1764535306696,19.508864,137.16,137.14,3.48743454]
[1764535306898,0.65,137.16,137.14,3.48743454]
[1764535307205,0.65,137.16,137.13,8.80994492]
[1764535307206,3.2,137.18,137.16,8.80994492]
[1764535307409,3.2,137.18,137.17,3.48743454]
[1764535307410,3.85,137.18,137.17,3.48743454]
[1764535310498,0.2,137.19,137.18,23.48139497]
[1764535311710,0.85,137.25,137.19,9.09426806]
[1764535311903,0.2,137.25,137.24,3.48743454]
[1764535312296,0.85,137.25,137.24,3.48743454]
[1764535313396,0.85,137.25,137.23,3.48743454]
[1764535313597,0.65,137.24,137.23,3.48743454]
[1764535315418,0.85,137.25,137.23,3.48743454]
[1764535316000,0.66,137.24,137.23,3.48743454]
[1764535316628,0.2,137.25,137.23,3.48743454]
[1764535316822,0.86,137.25,137.24,3.48743454]
[1764535317195,0.86,137.25,137.24,12.29737946]
[1764535321415,0.86,137.25,137.22,3.48743454]
[1764535321608,0.66,137.24,137.22,3.48743454]
[1764535321807,0.66,137.24,137.19,7.28915264]
[1764535322017,0.66,137.24,137.2,12.29737946]
[1764535323010,0.66,137.24,137.21,3.48743454]
[1764535323396,7.28703636,137.23,137.21,3.48743454]
[1764535323922,0.66,137.22,137.21,3.48743454]
[1764535324516,0.66,137.22,137.21,2.22873994]
[1764535325714,0.66,137.22,137.2,11.03868486]
[1764535326322,0.66,137.22,137.21,2.22873994]
[1764535327522,7.9475674,137.22,137.21,2.22873994]
[1764535328503,7.9475674,137.22,137.21,1.99548694]
[1764535328725,7.7475674,137.22,137.21,1.99548694]
[1764535328916,7.7475674,137.22,137.21,1.76226794]
[1764535329318,7.5475674,137.22,137.21,1.76226794]
[1764535329518,7.5475674,137.22,137.21,1.52901494]
[1764535329717,7.3475674,137.22,137.21,1.52901494]
[1764535329924,7.3475674,137.22,137.21,1.29579594]
[1764535330130,7.3475674,137.22,137.19,11.03868486]
[1764535330311,7.0875674,137.22,137.2,2.22873994]
[1764535330716,6.8875674,137.22,137.2,1.99548694]
[1764535330945,6.8875674,137.22,137.17,7.29005058]
[1764535331125,6.8875674,137.22,137.19,2.22873994]
[1764535331829,0.66,137.21,137.19,2.22873994]
[1764535332028,7.9482857,137.21,137.19,2.22873994]
[1764535332416,0.66,137.2,137.18,11.03868486]
[1764535336029,0.66,137.2,137.19,2.22873994]
[1764535336221,7.94775653,137.22,137.19,2.22873994]
[1764535336424,0.66,137.21,137.2,2.22873994]
[1764535337432,7.94809853,137.21,137.2,2.22873994]
[1764535338840,7.94809853,137.21,137.18,8.80994492]
[1764535339016,0.66,137.21,137.2,2.22873994]
[1764535343113,0.66,137.21,137.19,2.22873994]
[1764535347923,0.66,137.21,137.2,2.22873994]
[1764535349245,0.66,137.21,137.2,1.87100054]
[1764535349638,7.28779721,137.22,137.2,1.87100054]
[1764535349944,0.68,137.21,137.2,1.87100054]
[1764535353249,7.96809853,137.21,137.19,2.22873994]
[1764535354723,0.68,137.21,137.2,2.22873994]
[1764535354937,0.68,137.21,137.18,16.79960864]
[1764535355137,0.68,137.21,137.2,2.22873994]
[1764535355448,0.68,137.21,137.19,2.22873994]
[1764535362854,0.68,137.21,137.2,2.22873994]
[1764535364242,0.68,137.21,137.19,2.22873994]
[1764535370353,7.96829618,137.21,137.19,2.22873994]
[1764535370556,26.18854251,137.21,137.15,9.50994492]
[1764535370756,3.88,137.2,137.15,11.03868486]
[1764535370961,3.88,137.2,137.16,2.22873994]
[1764535371260,0.68,137.19,137.16,2.22873994]
[1764535372261,7.96958838,137.19,137.16,2.22873994]
[1764535372855,0.68,137.18,137.16,2.22873994]
[1764535373161,0.68,137.18,137.17,2.22873994]
[1764535375673,7.96983684,137.18,137.16,2.22873994]
[1764535376175,0.67,137.17,137.16,2.22873994]
[1764535380381,0.67,137.17,137.15,8.80994492]
[1764535380553,3.87,137.17,137.15,2.22873994]
[1764535381472,3.2,137.17,137.15,2.22873994]
[1764535381782,0.67,137.16,137.14,7.29163685]
[1764535381983,0.67,137.16,137.15,2.22873994]
[1764535382358,11.16022432,137.17,137.15,2.22873994]
[1764535383259,11.15958838,137.18,137.16,2.22873994]
[1764535383519,3.2,137.19,137.17,2.22873994]
[1764535383696,3.2,137.19,137.18,2.22873994]
[1764535384192,3.2,137.19,137.17,2.89873994]
[1764535386082,3.2,137.19,137.17,0.67]
[1764535386677,7.28863893,137.2,137.17,4.15460755]
[1764535387075,7.28863893,137.2,137.18,4.15460755]
[1764535387576,7.95863893,137.2,137.18,4.15460755]
[1764535388970,7.28863893,137.2,137.18,4.15460755]
[1764535393285,20.00938061,137.21,137.19,4.15460755]
[1764535393467,10.48829035,137.21,137.19,4.15460755]
[1764535394487,11.15829035,137.21,137.19,4.15460755]
[1764535394685,11.15829035,137.21,137.19,3.48460755]
[1764535394887,3.87,137.21,137.19,3.48460755]
[1764535395085,3.87,137.21,137.19,4.15460755]
[1764535395469,3.2,137.21,137.19,4.15460755]
[1764535396481,3.87,137.21,137.19,4.15460755]
[1764535396679,3.87,137.21,137.18,11.44425801]
[1764535396877,0.67,137.2,137.18,3.48460755]
[1764535397189,11.15819217,137.21,137.18,4.15460755]
[1764535398171,0.67,137.2,137.17,3.48460755]
[1764535398370,0.67,137.2,137.17,4.15460755]
[1764535398571,7.95881583,137.2,137.17,4.15460755]
[1764535399388,0.67,137.2,137.17,4.15460755]
[1764535399780,0.67,137.2,137.18,4.15460755]
[1764535400195,7.9586411,137.2,137.18,4.15460755]
[1764535401296,7.9586411,137.2,137.18,3.48460755]
[1764535401675,7.9586411,137.2,137.18,4.15460755]
[1764535403694,7.9586411,137.2,137.18,3.48460755]
[1764535403876,7.9586411,137.2,137.18,4.13460755]
[1764535406397,7.9586411,137.2,137.19,3.48460755]
[1764535408696,7.9586411,137.2,137.18,3.48460755]
[1764535408894,0.71,137.19,137.18,3.48460755]
[1764535410496,17.77894252,137.21,137.18,3.48460755]
[1764535410690,0.71,137.2,137.18,3.48460755]
[1764535411584,0.71,137.2,137.19,3.48460755]
[1764535413700,3.2,137.21,137.19,3.48460755]
[1764535413906,0.71,137.23,137.2,4.14460755]
[1764535414110,3.91,137.23,137.21,3.48460755]
[1764535417497,0.71,137.22,137.2,3.48460755]
[1764535418914,7.99779871,137.22,137.19,0.66]
[1764535419207,0.71,137.21,137.2,3.48460755]
[1764535421721,0.71,137.21,137.19,3.48460755]
[1764535427231,7.99856409,137.21,137.19,3.48460755]
[1764535427526,7.99856409,137.21,137.18,3.48460755]
[1764535427825,0.71,137.2,137.18,3.48460755]
[1764535428000,0.71,137.2,137.18,4.14460755]
[1764535428323,0.71,137.2,137.18,0.66]
[1764535428505,0.71,137.2,137.19,3.48460755]
[1764535432620,7.28765007,137.22,137.19,4.14460755]
[1764535432926,7.28765007,137.22,137.21,3.48460755]
[1764535433102,7.28765007,137.22,137.2,4.14460755]
[1764535433908,7.99765007,137.22,137.2,4.14460755]
[1764535438121,7.28765007,137.22,137.2,4.14460755]
[1764535438325,7.95765007,137.22,137.2,4.14460755]
[1764535439137,7.95765007,137.22,137.2,3.48460755]
[1764535439314,7.95765007,137.22,137.19,4.18460755]
[1764535446641,7.28765007,137.22,137.19,4.18460755]
[1764535446845,0.67,137.21,137.19,4.18460755]
[1764535447136,3.87,137.21,137.17,69.49008981]
[1764535447438,3.87,137.21,137.18,3.48460755]
[1764535447641,0.67,137.2,137.18,4.18460755]
[1764535447938,0.67,137.2,137.19,3.48460755]
[1764535448335,0.67,137.2,137.19,2.22961738]
[1764535451059,11.15813117,137.21,137.19,2.22961738]
[1764535451244,11.15813117,137.21,137.2,2.22961738]
[1764535454936,11.15813117,137.21,137.17,68.79008981]
[1764535455126,0.67,137.2,137.17,69.49008981]
[1764535456253,0.67,137.2,137.19,2.22961738]
[1764535458732,11.15813117,137.21,137.19,2.22961738]
[1764535458929,11.15813117,137.21,137.2,2.22961738]
[1764535471656,11.15813117,137.21,137.18,0.67]
[1764535471855,10.48813117,137.21,137.2,2.22961738]
[1764535473077,11.19813117,137.21,137.2,2.22961738]
[1764535474376,10.48813117,137.21,137.2,2.22961738]
[1764535474550,10.48813117,137.21,137.2,2.89961738]
[1764535475171,10.48813117,137.21,137.2,2.22961738]
[1764535477362,3.2,137.21,137.2,2.89961738]
[1764535482250,3.2,137.21,137.2,2.22961738]
[1764535484279,3.2,137.21,137.2,2.89961738]
[1764535484981,3.2,137.21,137.2,2.22961738]
[1764535485478,17.018864,137.24,137.2,5.12923476]
[1764535485658,3.91,137.23,137.2,0.67]
[1764535485862,3.91,137.23,137.22,2.22961738]
[1764535488281,3.2,137.23,137.22,2.89961738]
[1764535488456,3.2,137.23,137.22,2.22961738]
[1764535488957,3.2,137.23,137.22,2.89961738]
[1764535490473,3.2,137.23,137.22,2.22961738]
[1764535493891,10.48703636,137.23,137.22,2.22961738]
[1764535495179,3.2,137.23,137.22,2.22961738]
[1764535496559,11.19667945,137.23,137.22,2.22961738]
[1764535497476,11.89667945,137.23,137.22,2.22961738]
[1764535498158,11.19667945,137.23,137.22,2.22961738]
[1764535500387,11.89667945,137.23,137.22,2.22961738]
[1764535500891,11.89667945,137.23,137.18,82.92376332]
[1764535500892,19.18371581,137.23,137.19,11.19667945]
[1764535501188,0.7,137.22,137.21,2.22961738]
[1764535501359,0.7,137.22,137.18,87.01295984]
[1764535501561,3.2,137.21,137.18,68.78919652]
[1764535501781,3.2,137.21,137.19,2.22961738]
[1764535501982,3.9,137.21,137.2,2.22961738]
[1764535502188,21.34547415,137.2,137.19,2.22961738]
[1764535505468,22.04547415,137.2,137.19,2.22961738]
[1764535506189,21.34547415,137.2,137.19,2.22961738]
[1764535506578,21.34547415,137.2,137.19,2.93961738]
[1764535506897,21.34547415,137.2,137.19,2.22961738]
[1764535508292,21.34547415,137.2,137.19,2.93961738]
[1764535510273,21.34547415,137.2,137.19,2.22961738]
[1764535510490,21.34547415,137.2,137.19,3.4830842]
[1764535510792,21.34547415,137.2,137.19,4.1930842]
[1764535511169,21.34547415,137.2,137.19,3.4830842]
[1764535511891,21.34547415,137.2,137.19,4.1930842]
[1764535512195,21.34547415,137.2,137.19,3.4830842]
[1764535513487,3.2,137.23,137.19,14.96532941]
[1764535513788,24.54547415,137.23,137.22,3.4830842]
[1764535517485,3.2,137.23,137.22,11.4806516]
[1764535518284,11.48116098,137.24,137.22,11.48048652]
[1764535518489,11.48116098,137.24,137.23,3.4830842]
[1764535518690,12.18116098,137.24,137.23,3.4830842]
[1764535519782,0.2,137.26,137.23,11.48012056]
[1764535519984,0.2,137.31,137.23,11.48012056]
[1764535519985,7.28196798,137.33,137.25,6.9661684]
[1764535520190,11.48116098,137.32,137.31,3.4830842]
[1764535520485,0.64,137.33,137.25,0.28432314]
[1764535520675,3.4830842,137.32,137.31,3.4830842]
[1764535520999,0.64,137.33,137.31,3.4830842]
[1764535521209,0.64,137.33,137.32,3.4830842]
[1764535521500,10.76430671,137.34,137.32,3.4830842]
[1764535521707,10.76430671,137.34,137.33,3.4830842]
[1764535522399,10.76430671,137.34,137.32,3.4830842]
[1764535522598,0.7,137.33,137.32,3.4830842]
[1764535523097,10.76430671,137.34,137.32,3.4830842]
[1764535523302,0.7,137.33,137.32,3.4830842]
[1764535525481,0.71,137.34,137.32,3.4830842]
[1764535525682,0.71,137.34,137.33,3.4830842]
[1764535526084,7.99119994,137.34,137.31,3.4830842]
[1764535526518,0.68,137.33,137.31,3.4830842]
[1764535527805,0.68,137.33,137.32,3.4830842]
[1764535530189,7.96173013,137.33,137.32,3.4830842]
[1764535530603,7.96173013,137.33,137.26,34.52188167]
[1764535530604,19.1451091,137.33,137.31,3.4830842]
[1764535530779,0.68,137.32,137.31,3.4830842]
[1764535531307,21.87784867,137.32,137.31,4.1930842]
[1764535531474,21.87784867,137.32,137.31,3.4830842]
[1764535532094,7.28122739,137.34,137.31,3.4830842]
[1764535532404,7.28122739,137.34,137.33,3.4830842]
[1764535532985,23.59009139,137.34,137.33,3.4830842]
[1764535533392,24.27009139,137.34,137.33,3.4830842]
[1764535534608,16.988864,137.34,137.33,3.4830842]
[1764535541509,16.308864,137.34,137.33,3.4830842]
[1764535543511,16.308864,137.34,137.33,4.1930842]
[1764535543890,16.308864,137.34,137.33,3.4830842]
[1764535545194,16.308864,137.34,137.33,4.1930842]
[1764535545590,16.308864,137.34,137.33,3.4830842]
[1764535549414,16.988864,137.34,137.33,3.4830842]
[1764535550311,16.988864,137.34,137.3,11.19299243]
[1764535550508,0.68,137.33,137.32,3.4830842]
[1764535550823,0.68,137.33,137.3,11.19299243]
[1764535551120,16.988864,137.33,137.32,3.4830842]
[1764535552515,3.88,137.36,137.32,11.47534461]
[1764535552708,3.88,137.36,137.35,3.4830842]
[1764535552918,3.2,137.36,137.35,3.4830842]
[1764535553099,11.16226041,137.36,137.35,3.4830842]
[1764535553299,0.68,137.43,137.36,8.80994492]
[1764535553605,0.68,137.43,137.42,3.4830842]
[1764535553910,14.15848985,137.45,137.41,3.4830842]
[1764535554118,14.15848985,137.45,137.42,9.51994492]
[1764535554419,0.68,137.44,137.42,9.51994492]
[1764535554809,0.68,137.44,137.41,3.4830842]
[1764535555126,13.00302912,137.43,137.39,3.4830842]
[1764535555294,3.2,137.42,137.39,3.4830842]
[1764535555494,3.88,137.42,137.39,3.4830842]
[1764535555693,0.67,137.41,137.39,3.4830842]
[1764535556004,10.18994492,137.41,137.39,3.4830842]
[1764535556498,0.67,137.4,137.39,3.4830842]
[1764535561033,0.67,137.4,137.36,7.28013977]
[1764535561203,0.67,137.4,137.39,3.4830842]
[1764535563431,0.67,137.4,137.38,3.4830842]
[1764535563672,3.2,137.39,137.38,3.4830842]
[1764535564034,3.87,137.39,137.38,3.4830842]
[1764535566831,3.87,137.39,137.36,3.4830842]
[1764535567034,0.67,137.38,137.36,3.4830842]
[1764535568132,0.67,137.38,137.37,7.27960981]
[1764535570435,0.67,137.38,137.36,9.50387755]
[1764535572321,3.87,137.39,137.36,28.39422699]
[1764535573118,3.87,137.39,137.36,26.17048921]
[1764535573640,3.2,137.39,137.36,26.17048921]
[1764535573918,0.67,137.38,137.36,26.17048921]
[1764535574123,3.87,137.39,137.36,26.17048921]
[1764535574455,0.67,137.38,137.36,25.48048921]
[1764535575748,0.67,137.38,137.36,27.70422699]
[1764535575932,0.67,137.38,137.36,25.48048921]
[1764535580434,0.67,137.38,137.36,25.48048921]
[1764535581029,0.67,137.38,137.36,7.28013977]
[1764535590770,3.89,137.39,137.36,10.21387755]
[1764535591261,0.69,137.38,137.36,10.21387755]
[1764535591561,3.89,137.39,137.36,10.21387755]
[1764535591757,3.2,137.39,137.36,10.21387755]
[1764535591961,0.69,137.38,137.36,10.21387755]
[1764535592554,3.2,137.39,137.36,10.21387755]
[1764535592864,3.89,137.39,137.36,10.21387755]
[1764535594661,7.27766983,137.41,137.37,2.93373778]
[1764535594859,7.96766983,137.41,137.38,2.22373778]
[1764535595055,7.27766983,137.41,137.38,2.22373778]
[1764535595254,0.69,137.41,137.38,2.93373778]
[1764535595675,0.69,137.41,137.38,10.21252805]
[1764535595847,3.89,137.42,137.39,2.93373778]
[1764535596049,11.16696984,137.42,137.39,2.93373778]
[1764535596570,10.47696984,137.42,137.39,2.22373778]
[1764535596739,10.47696984,137.42,137.38,7.27879027]
[1764535596740,0.69,137.43,137.41,2.22373778]
[1764535596944,10.67569945,137.45,137.4,2.22373778]
[1764535596945,0.69,137.42,137.4,2.22373778]
[1764535598071,0.69,137.42,137.4,2.93373778]
[1764535598244,0.69,137.42,137.4,10.21170411]
[1764535598647,0.69,137.42,137.4,9.50170411]
[1764535598975,0.69,137.42,137.4,10.21170411]
[1764535599153,7.27592912,137.44,137.4,10.21170411]
[1764535599348,0.69,137.43,137.4,10.21170411]
[1764535599968,0.69,137.43,137.4,9.50170411]
[1764535600173,7.96645168,137.43,137.4,10.21170411]
[1764535602352,7.96645168,137.43,137.4,9.50170411]
[1764535602753,0.69,137.43,137.41,2.22373778]
[1764535603656,26.98475458,137.45,137.41,2.22373778]
[1764535603856,11.36589058,137.45,137.42,2.93373778]
[1764535604057,0.69,137.44,137.42,2.22373778]
[1764535604980,0.69,137.44,137.41,10.21083107]
[1764535605155,0.69,137.44,137.41,7.27709329]
[1764535605352,0.69,137.44,137.41,9.50083107]
[1764535606175,0.69,137.44,137.42,2.22373778]
[1764535607177,4.09,137.45,137.43,2.22373778]
[1764535607488,0.69,137.44,137.43,2.22373778]
[1764535609260,0.69,137.44,137.42,9.50037293]
[1764535611271,0.69,137.44,137.43,2.22373778]
[1764535618394,3.4,137.45,137.43,2.22373778]
[1764535618699,3.4,137.45,137.42,7.97663515]
[1764535618700,4.05,137.45,137.44,2.22373778]
[1764535621197,11.32537286,137.45,137.44,2.22373778]
[1764535621693,7.47537286,137.45,137.44,2.22373778]
[1764535621890,7.47537286,137.45,137.44,2.92373778]
[1764535622191,0.2,137.45,137.44,2.92373778]
[1764535622990,0.2,137.45,137.44,2.22373778]
[1764535624693,0.2,137.45,137.43,0.7]
[1764535624897,8.12538442,137.45,137.43,2.22373778]
[1764535626893,7.47538442,137.45,137.44,2.22373778]
[1764535627893,8.12538442,137.45,137.44,2.22373778]
[1764535628276,7.47538442,137.45,137.44,2.22373778]
[1764535630099,0.2,137.45,137.44,2.92373778]
[1764535630401,0.2,137.45,137.44,10.19963999]
[1764535631004,0.2,137.45,137.44,2.92373778]
[1764535631985,0.2,137.45,137.44,10.19963999]
[1764535632500,0.2,137.45,137.44,11.44618007]
[1764535634001,0.2,137.45,137.44,14.64618007]
[1764535634394,0.2,137.45,137.44,17.55982686]
[1764535637605,0.2,137.45,137.44,14.35982686]
[1764535637800,0.2,137.45,137.44,17.55982686]
[1764535642394,0.2,137.45,137.44,79.05982686]
[1764535647801,0.2,137.45,137.44,75.85982686]
[1764535648003,0.2,137.45,137.44,79.05982686]
[1764535648503,0.2,137.45,137.44,75.15982686]
[1764535648692,0.2,137.45,137.44,75.44618007]
[1764535649092,0.2,137.48,137.44,85.81587678]
[1764535649326,0.2,137.48,137.47,3.47027786]
[1764535649700,0.2,137.48,137.47,4.16027786]
[1764535650220,0.2,137.48,137.47,14.34760248]
[1764535650522,0.2,137.48,137.47,17.81788034]
[1764535654721,0.2,137.49,137.47,17.81788034]
[1764535655016,0.88,137.49,137.48,6.94055572]
[1764535655524,0.2,137.49,137.48,9.85335382]
[1764535657218,0.2,137.49,137.48,17.12713909]
[1764535660229,0.88,137.49,137.48,10.18658337]
[1764535660408,0.88,137.49,137.48,10.74406313]
[1764535665935,0.88,137.49,137.48,3.47027786]
[1764535666104,24.462193,137.49,137.46,3.47027786]
[1764535666412,24.462193,137.49,137.42,17.66196498]
[1764535666413,0.68,137.48,137.42,17.66196498]
[1764535666597,0.68,137.48,137.45,3.47027786]
[1764535666803,18.19409332,137.47,137.45,3.47027786]
[1764535667136,18.19409332,137.47,137.44,3.47027786]
[1764535667308,0.68,137.46,137.44,3.47027786]
[1764535667824,22.53712724,137.46,137.44,3.47027786]
[1764535668024,0.68,137.45,137.44,3.47027786]
[1764535669332,0.68,137.45,137.43,3.47027786]
[1764535669630,22.53712724,137.45,137.43,3.47027786]
[1764535669931,22.53712724,137.45,137.44,3.47027786]
[1764535670103,0.68,137.44,137.43,3.47027786]
[1764535675015,0.68,137.46,137.43,11.43670949]
[1764535675214,0.68,137.46,137.45,3.47027786]
[1764535675434,22.53712724,137.46,137.45,3.47027786]
[1764535676255,23.17914186,137.49,137.45,3.47027786]
[1764535676256,0.67,137.48,137.45,3.47027786]
[1764535676531,0.67,137.47,137.44,7.9556834]
[1764535676745,0.67,137.47,137.46,3.47027786]
[1764535677616,26.98231471,137.49,137.46,3.47027786]
[1764535677815,0.67,137.48,137.45,7.95519245]
[1764535679124,0.67,137.48,137.47,3.47027786]
[1764535682452,3.4,137.49,137.47,4.15027786]
[1764535682657,4.07,137.49,137.48,3.47027786]
[1764535683363,3.4,137.49,137.48,3.47027786]
[1764535683535,0.2,137.49,137.48,10.74406313]
[1764535683734,0.2,137.49,137.48,11.42406313]
[1764535683941,0.2,137.49,137.48,10.74406313]
[1764535686652,0.87,137.49,137.48,10.74406313]
[1764535688655,0.2,137.49,137.48,11.42406313]
[1764535688862,0.2,137.49,137.48,10.74406313]
[1764535690062,0.2,137.49,137.48,11.42406313]
[1764535690361,0.2,137.49,137.48,3.47027786]
[1764535690859,0.2,137.49,137.48,11.42406313]
[1764535691068,0.2,137.49,137.48,10.74406313]
[1764535691578,0.2,137.49,137.48,14.89434099]
[1764535692459,0.2,137.49,137.48,19.04944582]
[1764535694162,0.2,137.49,137.48,80.54944582]
[1764535694467,0.2,137.49,137.48,74.87291738]
[1764535694763,0.2,137.49,137.48,70.99291738]
[1764535698672,0.87,137.49,137.48,61.5]
[1764535698876,0.87,137.49,137.46,9.49379004]
[1764535699176,0.67,137.48,137.46,9.49379004]
[1764535705987,0.67,137.48,137.45,7.27537286]
[1764535706167,2.88913211,137.48,137.45,7.27537286]
[1764535706658,0.72,137.47,137.45,7.27537286]
[1764535708287,0.72,137.47,137.45,9.49450497]
[1764535711678,0.72,137.47,137.45,2.21913211]
[1764535717394,0.72,137.47,137.44,9.49479808]
[1764535718901,7.99437242,137.47,137.43,9.49534402]
[1764535719201,7.99437242,137.47,137.44,2.21913211]
[1764535719505,0.72,137.46,137.44,2.21913211]
[1764535720601,0.72,137.46,137.44,9.49492065]
[1764535722505,0.72,137.46,137.43,2.21913211]
[1764535722805,7.99486213,137.46,137.43,2.21913211]
[1764535723303,0.72,137.45,137.43,2.21913211]
[1764535724604,0.72,137.45,137.42,9.49560901]
[1764535724811,7.99538349,137.45,137.42,9.49560901]
[1764535725310,0.72,137.44,137.42,7.2764769]
[1764535725893,0.72,137.44,137.41,9.49647433]
[1764535727691,7.99600505,137.44,137.41,7.27734222]
[1764535727889,7.99600505,137.44,137.4,70.99693211]
[1764535728097,0.72,137.43,137.4,9.49693211]
[1764535729715,0.72,137.43,137.41,2.21913211]
[1764535732114,7.99654584,137.43,137.4,2.21913211]
[1764535732307,10.96370084,137.43,137.39,2.21913211]
[1764535732502,10.47654584,137.43,137.39,2.21913211]
[1764535733002,10.47654584,137.43,137.39,2.88913211]
[1764535733913,10.47654584,137.43,137.39,2.21913211]
[1764535734415,0.72,137.42,137.39,2.21913211]
[1764535734889,0.72,137.42,137.39,2.88913211]
[1764535735210,0.72,137.42,137.37,69.44945268]
[1764535735417,0.72,137.42,137.38,2.21913211]
[1764535736329,7.27749072,137.41,137.38,2.21913211]
[1764535736692,0.69,137.4,137.38,2.21913211]
[1764535736892,0.69,137.4,137.36,7.93993047]
[1764535737194,0.69,137.4,137.38,2.21913211]
[1764535737819,3.89,137.43,137.39,2.87913211]
[1764535738122,0.69,137.43,137.4,2.21913211]
[1764535738297,7.9664605,137.43,137.4,2.87913211]
[1764535739119,0.69,137.42,137.4,2.21913211]
[1764535739615,0.69,137.42,137.4,2.87913211]
[1764535740118,0.69,137.42,137.4,0.66]
[1764535740309,0.69,137.42,137.39,9.49761788]
[1764535740513,0.69,137.42,137.39,10.15761788]
[1764535741115,0.69,137.42,137.4,0.66]
[1764535741918,7.27749072,137.41,137.37,7.27933555]
[1764535742115,2.21913211,137.4,137.34,37.59042012]
[1764535742417,7.27907992,137.38,137.34,10.36014101]
[1764535742922,0.69,137.37,137.34,10.36014101]
[1764535744100,0.69,137.37,137.35,2.21913211]
[1764535744417,7.96907992,137.38,137.35,2.87913211]
[1764535745512,0.69,137.37,137.35,2.87913211]
[1764535746726,0.69,137.37,137.35,0.66]
[1764535749131,0.69,137.37,137.35,2.87913211]
[1764535750409,0.69,137.38,137.35,10.1596945]
[1764535750595,0.69,137.38,137.36,2.21913211]
[1764535750794,7.27813601,137.4,137.36,2.87913211]
[1764535750795,0.69,137.4,137.36,2.87913211]
[1764535751017,0.69,137.4,137.37,0.66]
[1764535751353,7.96806203,137.4,137.36,2.87913211]
[1764535752122,7.96806203,137.4,137.36,2.21913211]
[1764535752320,0.69,137.39,137.36,2.21913211]
[1764535752510,0.69,137.39,137.37,0.66]
[1764535752711,7.27806203,137.4,137.37,0.66]
[1764535752914,0.69,137.39,137.36,2.87913211]
[1764535754425,0.69,137.39,137.36,4.13451237]
[1764535756025,7.96860906,137.39,137.36,4.13451237]
[1764535756209,7.96860906,137.39,137.35,10.75488544]
[1764535756410,0.69,137.38,137.35,11.41488544]
[1764535758425,7.27860906,137.39,137.36,11.41464665]
[1764535758634,7.96860906,137.39,137.36,11.41464665]
[1764535758814,0.69,137.38,137.36,11.41464665]
[1764535759008,0.69,137.38,137.36,10.75464665]
[1764535760410,0.69,137.39,137.36,11.41464665]
[1764535763143,0.69,137.39,137.36,10.75464665]
[1764535764239,0.69,137.39,137.36,11.43464665]
[1764535764814,7.27802037,137.4,137.37,0.68]
[1764535765020,0.71,137.39,137.37,3.47451237]
[1764535765541,0.72,137.39,137.37,3.47451237]
[1764535766363,0.72,137.39,137.36,11.44464665]
[1764535767043,0.72,137.39,137.37,0.69]
[1764535768545,0.72,137.39,137.36,10.75464665]
[1764535768736,0.72,137.39,137.36,11.44464665]
[1764535780551,0.72,137.39,137.35,7.28066982]
[1764535780851,0.72,137.39,137.35,11.44518219]
[1764535781046,0.72,137.39,137.35,10.75518219]
[1764535781362,0.72,137.39,137.36,4.16451237]
[1764535781730,0.72,137.39,137.36,11.44436991]
[1764535784146,0.72,137.39,137.36,10.75436991]
[1764535784338,0.72,137.39,137.35,11.44518219]
[1764535785776,0.72,137.39,137.36,10.75441801]
[1764535786054,0.72,137.39,137.36,11.44441801]
[1764535786234,0.72,137.39,137.37,3.47451237]
[1764535791757,0.72,137.39,137.36,11.44441801]
[1764535796162,0.72,137.39,137.36,10.75441801]
[1764535796861,0.72,137.39,137.36,11.41441801]
[1764535798266,0.72,137.39,137.36,10.75441801]
[1764535798965,7.9986193,137.39,137.36,7.27990564]
[1764535800063,0.67,137.38,137.36,7.27990564]
[1764535800769,0.67,137.38,137.36,10.75441801]
[1764535801060,0.67,137.38,137.34,61.7]
[1764535801265,3.47451237,137.37,137.34,0.2]
[1764535801439,6.94902474,137.37,137.34,0.2]
[1764535801780,0.67,137.36,137.34,0.2]
[1764535802445,7.95024681,137.36,137.34,0.2]
[1764535803248,0.67,137.35,137.34,0.2]